Cogmind - Beta 16.1 @@@ ROGUE MODE // 2026.02.10 @ 15:00:02 Player: Zish Result: Destroyed by Y-45 Defender with Beam Rifle Performance ------------- Evolutions (1) 500 Regions Visited (2) 400 Robots Destroyed (37) 185 Value Destroyed (924) 924 Prototype IDs (2) 40 Alien Tech Used (0) 0 Bonus (0) 0 TOTAL SCORE: 2049 Bonus ------- None Cogmind --------- Core Integrity 0/400 Matter 300/300 Energy 100/100 System Corruption 2% Temperature Cool (27) Movement Flying (435) Ox5 Location -9/Materials Parts ------- > --- POWER (2) -------- (None) > --- PROPULSION (3) --- VTOL Module > --- UTILITY (2) ------ Large Storage Unit > --- WEAPON (2) ------- Heavy Hammer > --- INVENTORY (15) --- VTOL Module VTOL Module VTOL Module VTOL Module VTOL Module Signal Interpreter Spread Laser Mini Grenade Launcher Peak State ------------ > --- POWER ------------ Light Ion Engine Light Ion Engine > --- PROPULSION ------- VTOL Module VTOL Module VTOL Module > --- UTILITY ---------- Large Storage Unit Utility Shielding > --- WEAPON ----------- Grenade Launcher Heavy Hammer > --- INVENTORY -------- VTOL Module VTOL Module VTOL Module VTOL Module VTOL Module Signal Interpreter Spread Laser Mini Grenade Launcher [Rating: 14] Favorites ----------- Power Light Ion Engine Engine Light Ion Engine Power Core Light Nuclear Core Propulsion Light Treads Treads Light Treads Flight Unit VTOL Module Utility Utility Shielding Storage Large Storage Unit Protection Utility Shielding Weapon Light Assault Rifle Energy Gun Small Laser Ballistic Gun Light Assault Rifle Launcher Grenade Launcher Impact Weapon Heavy Hammer Slashing Weapon Mining Claw Build | -11 -10 -9 ------- Run | Yrd Mat Mat Slots Evolved 2 | . . 2 Power 1 | . . 1 Propulsion 1 | . . 1 Utility . | . . . Weapon . | . . . Parts Attached 28 | 6 5 17 Power 10 | 1 1 8 Engine 9 | 1 1 7 Core 1 | . . 1 Reactor . | . . . Propulsion 8 | 2 1 5 Treads 5 | 2 1 2 Leg . | . . . Wheel . | . . . Hover . | . . . Flight 3 | . . 3 Utility 3 | 1 2 . Device . | . . . Storage 2 | 1 1 . Processor . | . . . Hackware . | . . . Protection 1 | . 1 . Artifact . | . . . Weapon 7 | 2 1 4 Energy Gun 1 | 1 . . Energy Cannon . | . . . Ballistic Gun 3 | 1 1 1 Ballistic Cannon . | . . . Launcher 1 | . . 1 Special Weapon . | . . . Impact Weapon 1 | . . 1 Slashing Weapon 1 | . . 1 Piercing Weapon . | . . . Special Melee Weapon . | . . . Unidentified Prototypes . | . . . Parts Lost 19 | . . 19 Power 9 | . . 9 Propulsion 6 | . . 6 Utility . | . . . Weapon 4 | . . 4 Highest Loss Streak 4 | . . 4 To Critical Strikes . | . . . Average Backups 11 | 2 9 12 Power . | . 1 . Propulsion 6 | 1 4 7 Utility 1 | . 1 1 Weapon 2 | . 2 3 Tool/Special . | . . . Unused Backups 13 | . 4 9 Power . | . . . Propulsion 7 | . 2 5 Utility 1 | . . 1 Weapon 5 | . 2 3 Tool/Special . | . . . Average Slot Usage (%) 83 | . 98 72 Engine 14 | . 14 14 Treads 18 | . 28 10 Flight 2 | . . 3 Storage 12 | . 14 11 Protection 10 | . 12 9 Energy Gun 2 | . 6 . Ballistic Gun 14 | . 21 9 Impact Weapon 2 | . . 3 Slashing Weapon 3 | . . 6 Peak Build Rating 14 | 6 9 14 Average Rating 9 | 4 7 10 On Entrance 5 | . 6 9 Avg Prop Armor Cover (%) . | . . . Naked Turns . | . . . Heaviest Build 37 | 10 26 37 Greatest Support 60 | 40 40 60 Greatest Overweight (x) 10 | 2 . 10 Average Overweight (x) . | . . 1 Largest Inventory Capacity 15 | 8 15 15 Average Capacity 12 | 7 10 15 Most Carried 15 | 4 15 15 Average Carried 11 | 2 9 12 Final Capacity 15 | 8 15 15 Final Carried 15 | 4 15 8 Class Distribution -------------------- 97% | Mutant Dominant Class ---------------- Mutant | -10/Materials Mutant | -9/Materials Resources | -11 -10 -9 ----------- Run | Yrd Mat Mat Matter Collected 699 | 254 128 317 Remotely . | . . . Salvage Created 1257 | . 504 753 Parts 78 | . 35 43 Haulers Intercepted . | . . . Recyclers Shooed 1 | . . 1 Parts Field Recycled . | . . . Retrieved Matter . | . . . Parts Self-Destructed . | . . . Prevented . | . . . Parts Restored . | . . . Kills | -11 -10 -9 ------- Run | Yrd Mat Mat Combat Hostiles Destroyed 33 | . 14 19 Melee 10 | . . 10 Guns 21 | . 14 7 AOE 1 | . . 1 Classes Destroyed 5 | . 3 2 Recycler 3 | . 2 1 Watcher 1 | . . 1 Swarmer 13 | . 9 4 Grunt 16 | . 5 11 Sentry 4 | . . 4 Best Kill Streak 3 | . 3 3 Combat Bots Only 3 | . 3 3 Max Kills in Single Turn 2 | . 2 1 Gunslinging 1 | . 1 . Exploded 1 | . . 1 Melee 1 | . . 1 Uniques/NPCs Destroyed . | . . . Combat | -11 -10 -9 -------- Run | Yrd Mat Mat Hostile Shots Fired 269 | . 70 199 Missed 69 | . 19 50 Hits 200 | . 51 149 Projectile 200 | . 51 149 Critical Strikes 7 | . 1 6 Damage Taken 2369 | . 521 1848 Core 508 | . 98 410 Absorbed by Shields . | . . . Redirected to Shielding 42 | . 19 23 Regen/Repaired (Parts) 4 | . 4 . Core Remaining (%) 80 | 100 60 . Volleys Fired 93 | . 53 40 Largest 2 | . 2 2 Hottest 60 | . 60 50 Shots Fired 158 | . 103 55 Gun 156 | . 103 53 Cannon . | . . . Launcher 2 | . . 2 Special . | . . . Kinetic 125 | . 72 53 Thermal 31 | . 31 . Explosive 2 | . . 2 Electromagnetic . | . . . Robot Hit Streak 13 | . 13 8 Robot Miss Streak 5 | . 4 5 Penetration Max . | . . . Secondary Targets 4 | . 3 1 Max Gunslinging Chain 1 | . 1 1 Shots Hit Robots 142 | . 58 84 Core Hits 52 | . 26 26 Critical Kills 1 | . 1 . Critical Parts Destroyed 2 | . . 2 Critical Strikes 4 | . 1 3 Destroy 2 | . 1 1 Smash 2 | . . 2 Melee Attacks 87 | . . 87 Impact 33 | . . 33 Slashing 54 | . . 54 Piercing . | . . . Sneak Attacks 4 | . . 4 Combat Hostiles . | . . . Follow-up Attacks . | . . . Damage Inflicted 2191 | . 534 1657 Guns 874 | . 534 340 Cannons . | . . . Explosions 94 | . . 94 Melee 1223 | . . 1223 Ramming . | . . . Kinetic 621 | . 281 340 Thermal 253 | . 253 . Explosive 94 | . . 94 Electromagnetic . | . . . Impact 472 | . . 472 Slashing 751 | . . 751 Piercing . | . . . Highest Corruption 6 | . 6 2 Average Corruption 2 | . 5 2 Corruption Purged . | . . . Corruption Blocked . | . . . Effects 12 | . 3 9 Message Errors 1 | . . 1 Matter Fused 3 | . . 3 Heat Flow Errors 1 | . 1 . Energy Discharges 3 | . 1 2 Parts Rejected 1 | . . 1 Data Loss (minor) 2 | . . 2 Weapon Failures 1 | . 1 . Overload Shots . | . . . Overflow Damage 94 | . . 94 Projectiles . | . . . Explosions . | . . . Melee 94 | . . 94 Knockbacks 1 | . . 1 Impact 1 | . . 1 Kinetic . | . . . Secondary . | . . . Self-Inflicted Damage . | . . . Shots . | . . . Rammed . | . . . Targets Rammed . | . . . Kicked . | . . . Crushed . | . . . Highest Temperature 166 | . 166 114 Average Temperature 40 | . 41 39 Received Heat Transfer 912 | . 132 780 Siege Activations . | . . . Martial Activations . | . . . Shielding Activations . | . . . Robots Disrupted . | . . . Combat Hostiles . | . . . Robots Corrupted 1 | . . 1 Combat Hostiles 1 | . . 1 Parts Fried 1 | . . 1 Impact Corruptions 4 | . . 4 Robots Melted . | . . . Combat Hostiles . | . . . Parts Melted . | . . . Heat Transferred 575 | . 575 . Parts Sabotaged . | . . . Parts Stolen . | . . . Parts Stripped . | . . . Power Chain Reactions . | . . . Alert | -11 -10 -9 ------- Run | Yrd Mat Mat Maximum Alert Level . | . . . Low Security (%) 100 | 100 100 100 Level 1 . | . . . Level 2 . | . . . Level 3 . | . . . Level 4 . | . . . Level 5 . | . . . High Security . | . . . Max Security . | . . . Peak Influence 94 | . 78 94 Initial 29 | . . 29 Average 25 | . 23 28 Influence Increases 982 | . 402 580 Destroy 0b10 Robot/C 660 | . 280 380 Destroy 0b10 Robot/NC 20 | . 10 10 Destroy Leader 162 | . 60 102 Successful Hack 22 | . 22 . Disable Machine 15 | . . 15 Destroy Structure 28 | . . 28 Lose Combat Pursuer 75 | . 30 45 Influence Decreases 982 | . 332 650 Entered New Map 41 | . . 41 Time Decay 795 | . 332 463 Lost Part 146 | . . 146 Squads Dispatched 6 | . 2 4 Investigation 3 | . 1 2 Extermination . | . . . Reinforcement 3 | . 1 2 Assault . | . . . Garrison . | . . . Intercept . | . . . Searches Triggered . | . . . Construction Impeded . | . . . Haulers Reinforced . | . . . Active Scanning Responses . | . . . Cargo Convoy Interrupts . | . . . Stealth | -11 -10 -9 --------- Run | Yrd Mat Mat Distress Signals 4 | . 1 3 Communications Jammed . | . . . Distress Signals . | . . . Times Spotted 52 | . 21 31 Peak Tracking Total 4 | . 4 4 Tactical Retreats 4 | . 1 3 Traps | -11 -10 -9 ------- Run | Yrd Mat Mat Traps Triggered 7 | . 6 1 Indirectly . | . . . Trap Hack Attempts . | . . . Triggered . | . . . Disarmed . | . . . Reprogrammed 4 | . 4 . Reused . | . . . Traps Extracted . | . . . Installed . | . . . Triggered . | . . . Machines | -11 -10 -9 ---------- Run | Yrd Mat Mat Machines Disabled 1 | . . 1 Max in Single Turn 1 | . . 1 Machines Repaired . | . . . Machines Dismantled . | . . . Machines Sabotaged . | . . . Overloaded Fab Kills . | . . . Hacking | -11 -10 -9 --------- Run | Yrd Mat Mat Machines Accessed 10 | . 7 3 Terminals 7 | . 4 3 Fabricators . | . . . Repair Stations 1 | . 1 . Recycling Units 2 | . 2 . Scanalyzers . | . . . Garrison Access . | . . . Total Hacks 29 | . 20 9 Successful 12 | . 9 3 Failed 17 | . 11 6 Catastrophic 2 | . 1 1 Database Lockouts . | . . . Manual . | . . . Terminals 23 | . 14 9 Fabricators . | . . . Repair Stations 2 | . 2 . Recycling Units 4 | . 4 . Scanalyzers . | . . . Garrison Access . | . . . Terminal Hacks 8 | . 5 3 Record 2 | . . 2 Prototype ID Bank 1 | . . 1 Reprogram Traps 2 | . 2 . Registered Components 1 | . 1 . Zone Layout 2 | . 2 . Fabricator Hacks . | . . . Repair Station Hacks 2 | . 2 . Scan Component 1 | . 1 . Repair 1 | . 1 . Recycling Unit Hacks 2 | . 2 . Report Inventory 1 | . 1 . Retrieve Components 1 | . 1 . Scanalyzer . | . . . Garrison Access Hacks . | . . . Unauthorized Hacks . | . . . Terminals . | . . . Fabricators . | . . . Repair Stations . | . . . Recycling Units . | . . . Scanalyzers . | . . . Garrison Access . | . . . Data Cores Recovered . | . . . Used . | . . . Hacking Detections 9 | . 6 3 Full Trace Events 5 | . 3 2 Feedback Events . | . . . Feedback Blocked . | . . . Robot Schematics Acquired . | . . . Robots Built . | . . . Authchips . | . . . Time . | . . . Total Robot Build Rating . | . . . Part Schematics Acquired . | . . . Parts Built . | . . . Authchips . | . . . Time . | . . . Total Part Build Rating . | . . . Part Studies Acquired . | . . . Parts Repaired 1 | . 1 . Time 38 | . 38 . Parts Recycled . | . . . Recycled Matter . | . . . Retrieved Matter . | . . . Retrieved Components 5 | . 5 . Parts Scanalyzed . | . . . Part Schematics Acquired . | . . . Parts Damaged . | . . . Bothacking | -11 -10 -9 ------------ Run | Yrd Mat Mat Used RIF Installer . | . . . Robots Hacked . | . . . Non-combat . | . . . Combat . | . . . Robot Hacks Applied . | . . . Relay Couplers Released . | . . . Fabnet Peak Effective % . | . . . Robots Rewired . | . . . Allies Hacked . | . . . Hacks Repelled . | . . . Allies | -11 -10 -9 -------- Run | Yrd Mat Mat Total Allies . | . . . Largest Group . | . . . Highest-Rated Group . | . . . Highest-Rated Ally . | . . . Total Orders . | . . . Ally Attacks . | . . . Total Damage . | . . . Kills . | . . . Allies Corrupted . | . . . Allies Melted . | . . . Intel | -11 -10 -9 ------- Run | Yrd Mat Mat Active Infowar (turns) . | . . . Robot Analysis Total . | . . . Derelict Logs Recovered . | . . . Drone Launches . | . . . Drone Recoveries . | . . . Exploration | -11 -10 -9 ------------- Run | Yrd Mat Mat Turns Passed 3300 | 121 1388 1791 Spaces Moved 1369 | 73 699 597 Core 69 | 18 . 51 Treads 1195 | 55 699 441 Legs . | . . . Wheels . | . . . Hover . | . . . Flight 105 | . . 105 Fastest Speed 50 | 50 160 160 Average Speed 190 | 149 160 231 Slowest Speed 595 | 160 160 595 Overloaded Moves . | . . . Propulsion Burnouts . | . . . Robots Hopped . | . . . Potential Cave-ins 5 | . . 5 Cave-ins Triggered . | . . . Exploration Rate (%) 43 | 4 81 44 Regions Visited 2 Branch Regions . Pre-discovered Areas . | . . . Known Exits Taken . | . . . Unknown Exits Taken 2 | 1 1 . Scrap Searched . | . . . Spaces Dug 20 | . . 20 Terrain Destroyed 36 | . . 36 Melee 20 | . . 20 Projectile . | . . . AOE 16 | . . 16 Terrain Rammed . | . . . Walls Destroyed . | . . . Machines Disabled . | . . . Actions | -11 -10 -9 --------- Run | Yrd Mat Mat Total 1762 | 82 884 796 Wait 142 | . 98 44 Move 1367 | 72 698 597 Hop . | . . . Pick Up 26 | 4 19 3 Fast Attach 14 | 6 2 6 Attach 15 | . 2 13 Detach 5 | . 2 3 Swap 1 | . 1 . Drop 12 | . 9 3 Fire 93 | . 53 40 Melee 87 | . . 87 Ram . | . . . Kick . | . . . Crush . | . . . Escape Stasis . | . . . Rewire . | . . . Trap . | . . . Miscellaneous . | . . . Route ------- -11/Scrapyard -10/Materials (discovered 4 exits: *Mat x2 / [*Min x2]) -9/Materials (discovered 2 exits: [*Mat] / [*Min]) History --------- Turn | Location | Event 16 | -11/Scrapyard | Discovered new exit (range 16) 122 | -11/Scrapyard | Entered Materials 319 | -10/Materials | Build established: Mutant 432 | -10/Materials | Repaired Lgt. Nuclear Core 570 | -10/Materials | Discovered new exit (range 12) 747 | -10/Materials | Discovered new exit (range 9) 1199 | -10/Materials | Discovered new exit (range 19) 1405 | -10/Materials | Discovered new exit (range 11) 1510 | -10/Materials | Entered another Materials area 1510 | -9/Materials | Evolved 2 slots: Power x1, Propulsion x1 1725 | -9/Materials | Lost 3 parts (1p2n) 1856 | -9/Materials | Lost 3 parts (2p1n) 2283 | -9/Materials | Discovered new exit (range 16) 2448 | -9/Materials | Discovered new exit (range 3) 2631 | -9/Materials | Core integrity fell below 50% 3056 | -9/Materials | Lost 4 parts (2p1n1w) 3232 | -9/Materials | Core integrity fell below 20% 3301 | -9/Materials | Destroyed by Y-45 Defender with Beam Rifle Last Messages --------------- 03169_ U-05 Engineer builds a Wall. 03174_ K-01 Serf cleans the Material Processor. 03182_ System corrupted: Matter fused (-10). 03185_ K-01 Serf cleans the Material Processor. 03193_ Acquired 67 matter. 03215_ Sneak attack on O-16 Technician. 03215_ Destroyed Lgt. Ion Engine. 03215_ Destroyed Hover Unit. 03215_ O-16 Technician system corrupted by crushing effect. 03249_ System corrupted: Component data lost. 03250_ VTOL Module destroyed. 03265_ K-01 Serf cleans the Terminal. 03281_ System corrupted: VTOL Module rejected. 03288_ Lgt. Ion Engine destroyed. 03294_ Grenade Launcher destroyed. 03298_ Lgt. Ion Engine destroyed. 03301_ Critical hit (Burn: +37). [Achievement: Back For More] Map ----- +----------------------------------------------------+ | ?????????###?# #????# % #?? | | ?????????# #?# #????#% "" !! #?? | | ?????????###?# #????# """ ! #?? | | ?????????# #?# #???##%""" #?? | | ??########"### #???# "#?? | | ??# ## #???## T### | | ??# ## #????# "# " | | ??# ## ##???#%% # " | | ??# # ######+######## " | | ??# + #??????# | | ??# # T % #??????# | | ??# # ####% #??????# | | ??# % ######### #??????### | | ??#######+###??###T## ##?????# | | ??????# ##### #?????# | | ??????# #?????# | | ??????# """ #?????# | | ??????# ##### "T" #?????#] | | ??????# ##???# ##?????# | | ?????## Y##???# #??????# | | ?????# #???# +??????# | | ?????# = #???#|| #??????# | | ?????# #???#|! #??????# | | ?????# #?? #??????# | | ?????# #? #??????# | | ?????## @## ##+##### #??????#[ | | ??????# #? ????????# #??????##? | | ??????# #??????????# #????????? | | ??????# #??????????# #????????? | | ?????## ##?????????? ?????????? | | ????## ###???????? ?????????? | | ????# "#???????? ?????????? | | ????# ##???????????????????? | | ????# < #????????????????????? | | ????# #????????????????????? | | ????#"" ""#????????????????????? | | ????##"|||"##????????????????????? | | ?????##"""##?????????????????????? | | ??????#####??????????????????????? | | ?????????????????????????????????? | | ?????????????????????????????????? | | ?????????????????????????????????? | | ?????????????????????????????????? | | | | | | | | | | | | | | | +----------------------------------------------------+ Best States ------------- Heat Dissipation 28 Energy Generation 19 Energy Capacity 415 Matter Stores 300 Matter Capacity 300 Sight Range 16 Terrain Scan Density 10 Utility Shielding 33 Evasion (%) 40 Recoil Reduction 3 Item Schematics ----------------- None Robot Schematics ------------------ None Fabricated ------------ Nothing Repaired ---------- Lgt. Nuclear Core | 92% | -10/Materials Studied --------- None Alien Tech Used ----------------- None Achievements -------------- Back For More Challenges ------------ None Game ------ Seed ElectrostormBarrageScythe Manual? 0 Play Time 00:23:42 Cumulative 20.4 hours Start 2026.02.10 @ 14:40:07 End 2026.02.10 @ 15:00:02 Sessions 1 Manual Loads 0 Difficulty Rogue Special Mode None Game No. 51 Rogue 51 Adventurer 0 Explorer 0 Win Type - Total 0 Types 0/0/0/0/0/0/0/0/0/0 Lore% 10 Gallery% 23 Achievement% 18 Wizard Run 0 Options --------- Layout 1 ASCII 0 Keyboard 1 Movement Vi Keybinds 0 Fullscreen 1 Font 24/Smallcaps Map View 50x35 Zoom Use 0% Tactical HUD 1 Map Filters NONE Filters NONE Steam 1 RUN: ac3fac24-dc97-438f-acbd-d99e973ac1c7